[Event "Late-Titled-Tuesday-Blitz-March-19-2024"]
[Site "Chess.com"]
[Date "2024.03.19"]
[Round "10"]
[White "EsmeraldasAnderson03"]
[Black "DamianoLew95"]
[Result "0-1"]
[WhiteElo "2574"]
[BlackElo "2736"]
[TimeControl "180+1"]
[EndTime "15:53:15 PDT"]
[Termination "DamianoLew95 won by checkmate"]

1. d4 {[%clk 0:03:00.9]} 1... Nf6 {[%clk 0:03:00.1]} 2. c4 {[%clk 0:03:00.8]}
2... c6 {[%clk 0:03:00.5]} 3. Nc3 {[%clk 0:03:00.8]} 3... d5 {[%clk 0:03:01.2]}
4. cxd5 {[%clk 0:03:01.7]} 4... cxd5 {[%clk 0:03:02.1]} 5. Bf4 {[%clk
0:03:01.9]} 5... Nc6 {[%clk 0:03:01.9]} 6. e3 {[%clk 0:03:02.4]} 6... a6 {[%clk
0:03:02.5]} 7. Nf3 {[%clk 0:03:03]} 7... Bg4 {[%clk 0:02:51.2]} 8. h3 {[%clk
0:03:02.3]} 8... Bxf3 {[%clk 0:02:49.4]} 9. Qxf3 {[%clk 0:03:02.8]} 9... e6
{[%clk 0:02:50.1]} 10. Bd3 {[%clk 0:03:02.8]} 10... Bd6 {[%clk 0:02:49.4]} 11.
Bg5 {[%clk 0:02:55.3]} 11... h6 {[%clk 0:02:48.9]} 12. Bh4 {[%clk 0:02:52.5]}
12... g5 {[%clk 0:02:47.9]} 13. Bg3 {[%clk 0:02:52.5]} 13... Bxg3 {[%clk
0:02:41.9]} 14. Qxg3 {[%clk 0:02:53.4]} 14... Qe7 {[%clk 0:02:33.7]} 15. a3
{[%clk 0:02:48.1]} 15... Rc8 {[%clk 0:02:32.8]} 16. O-O {[%clk 0:02:45.2]} 16...
Qc7 {[%clk 0:02:16.6]} 17. f4 {[%clk 0:02:43.5]} 17... Rg8 {[%clk 0:02:10.4]}
18. Qf2 {[%clk 0:02:31.2]} 18... g4 {[%clk 0:02:10]} 19. Qh4 {[%clk 0:02:26.9]}
19... Qe7 {[%clk 0:02:10]} 20. f5 {[%clk 0:02:16.4]} 20... e5 {[%clk 0:02:09.6]}
21. hxg4 {[%clk 0:02:07.3]} 21... Rxg4 {[%clk 0:02:01.6]} 22. Qxh6 {[%clk
0:02:06.9]} 22... Kd7 {[%clk 0:01:55]} 23. Be2 {[%clk 0:01:57.5]} 23... Rgg8
{[%clk 0:01:45.1]} 24. dxe5 {[%clk 0:01:55.8]} 24... Qxe5 {[%clk 0:01:39.2]} 25.
Rad1 {[%clk 0:01:55.4]} 25... Rce8 {[%clk 0:01:35.4]} 26. Bf3 {[%clk 0:01:38.6]}
26... Ne7 {[%clk 0:01:04.1]} 27. e4 {[%clk 0:01:28.1]} 27... d4 {[%clk
0:01:01.7]} 28. Ne2 {[%clk 0:01:16.3]} 28... Nc6 {[%clk 0:00:59.9]} 29. Qd2
{[%clk 0:01:14.1]} 29... Kc8 {[%clk 0:00:31.5]} 30. Nxd4 {[%clk 0:01:00.1]}
30... Qc5 {[%clk 0:00:06.8]} 31. Qf2 {[%clk 0:00:58.4]} 31... Nxd4 {[%clk
0:00:01.3]} 32. Rc1 {[%clk 0:00:57.7]} 32... Nxf3+ {[%clk 0:00:01.5]} 33. Kh1
{[%clk 0:00:45.3]} 33... Rh8+ {[%clk 0:00:02.4]} 34. Qh4 {[%clk 0:00:44.6]}
34... Rxh4# {[%clk 0:00:03.3]} 0-1

[Event "Late-Titled-Tuesday-Blitz-March-19-2024"]
[Site "Chess.com"]
[Date "2024.03.19"]
[Round "10"]
[White "alexrustemov"]
[Black "bescmelasti"]
[Result "1/2-1/2"]
[WhiteElo "2848"]
[BlackElo "2697"]
[TimeControl "180+1"]
[EndTime "15:53:16 PDT"]
[Termination "Game drawn by repetition"]

1. d4 {[%clk 0:03:00.9]} 1... Nf6 {[%clk 0:02:58.4]} 2. c4 {[%clk 0:03:01.4]}
2... e6 {[%clk 0:02:59.1]} 3. Nf3 {[%clk 0:03:01.7]} 3... d5 {[%clk 0:02:59.6]}
4. Nc3 {[%clk 0:03:01.4]} 4... dxc4 {[%clk 0:02:57.7]} 5. e3 {[%clk 0:02:57.9]}
5... a6 {[%clk 0:02:57.4]} 6. a4 {[%clk 0:02:50.4]} 6... c5 {[%clk 0:02:57.5]}
7. Bxc4 {[%clk 0:02:49.8]} 7... cxd4 {[%clk 0:02:58.1]} 8. exd4 {[%clk
0:02:48.1]} 8... Nc6 {[%clk 0:02:58.7]} 9. O-O {[%clk 0:02:47.7]} 9... Be7
{[%clk 0:02:59.3]} 10. Re1 {[%clk 0:02:41.9]} 10... O-O {[%clk 0:02:59.1]} 11.
d5 {[%clk 0:02:41.4]} 11... exd5 {[%clk 0:02:53.4]} 12. Nxd5 {[%clk 0:02:40.8]}
12... Nxd5 {[%clk 0:02:51.2]} 13. Qxd5 {[%clk 0:02:40.3]} 13... Be6 {[%clk
0:02:34.4]} 14. Qe4 {[%clk 0:02:34]} 14... Bxc4 {[%clk 0:02:20.5]} 15. Qxc4
{[%clk 0:02:34.9]} 15... Bb4 {[%clk 0:02:15]} 16. Bd2 {[%clk 0:02:23.5]} 16...
Bxd2 {[%clk 0:02:12.4]} 17. Red1 {[%clk 0:02:22.8]} 17... Qf6 {[%clk 0:02:06.8]}
18. Rxd2 {[%clk 0:02:21.2]} 18... Rad8 {[%clk 0:02:06.4]} 19. Rad1 {[%clk
0:02:19.5]} 19... Qxb2 {[%clk 0:01:54.7]} 20. h4 {[%clk 0:01:57.8]} 20... Qf6
{[%clk 0:01:47.3]} 21. Rd7 {[%clk 0:01:53.4]} 21... Rxd7 {[%clk 0:01:22.2]} 22.
Rxd7 {[%clk 0:01:54.3]} 22... h6 {[%clk 0:01:22.6]} 23. Qe4 {[%clk 0:01:14.3]}
23... Rb8 {[%clk 0:01:14.6]} 24. g4 {[%clk 0:01:08.7]} 24... b5 {[%clk
0:01:07.6]} 25. g5 {[%clk 0:01:04.6]} 25... Qe6 {[%clk 0:01:07.4]} 26. Qxe6
{[%clk 0:00:55.9]} 26... fxe6 {[%clk 0:01:07.6]} 27. Rc7 {[%clk 0:00:56.5]}
27... Nd8 {[%clk 0:01:01.4]} 28. axb5 {[%clk 0:00:49.9]} 28... axb5 {[%clk
0:01:01.4]} 29. gxh6 {[%clk 0:00:49.9]} 29... gxh6 {[%clk 0:01:01.6]} 30. Ne5
{[%clk 0:00:50.1]} 30... b4 {[%clk 0:00:47.6]} 31. Nd7 {[%clk 0:00:49.5]} 31...
b3 {[%clk 0:00:17]} 32. Nf6+ {[%clk 0:00:34.9]} 32... Kf8 {[%clk 0:00:16.7]} 33.
Nh7+ {[%clk 0:00:34.9]} 33... Kg8 {[%clk 0:00:16.4]} 34. Nf6+ {[%clk 0:00:35.1]}
34... Kf8 {[%clk 0:00:17]} 35. Nh7+ {[%clk 0:00:35.4]} 35... Kg8 {[%clk
0:00:17.4]} 36. Nf6+ {[%clk 0:00:35.3]} 1/2-1/2

[Event "Late-Titled-Tuesday-Blitz-March-19-2024"]
[Site "Chess.com"]
[Date "2024.03.19"]
[Round "10"]
[White "rcmz"]
[Black "shirovin"]
[Result "0-1"]
[WhiteElo "2203"]
[BlackElo "2060"]
[TimeControl "180+1"]
[EndTime "15:53:16 PDT"]
[Termination "shirovin won on time"]

1. b4 {[%clk 0:03:00.9]} 1... Nf6 {[%clk 0:02:54.3]} 2. Bb2 {[%clk 0:03:00.2]}
2... g6 {[%clk 0:02:54.7]} 3. c4 {[%clk 0:02:59.7]} 3... Bg7 {[%clk 0:02:55]} 4.
e3 {[%clk 0:03:00]} 4... O-O {[%clk 0:02:55.3]} 5. Nf3 {[%clk 0:03:00.2]} 5...
a5 {[%clk 0:02:52.2]} 6. b5 {[%clk 0:02:59.7]} 6... c6 {[%clk 0:02:51.8]} 7. Be2
{[%clk 0:02:58.5]} 7... cxb5 {[%clk 0:02:51.1]} 8. cxb5 {[%clk 0:02:58.3]} 8...
d6 {[%clk 0:02:47.7]} 9. O-O {[%clk 0:02:58]} 9... Bg4 {[%clk 0:02:46.6]} 10. a4
{[%clk 0:02:48.3]} 10... Nbd7 {[%clk 0:02:45.5]} 11. Nc3 {[%clk 0:02:47.5]}
11... Nc5 {[%clk 0:02:44.6]} 12. d4 {[%clk 0:02:45.2]} 12... Nce4 {[%clk
0:02:43.6]} 13. Nxe4 {[%clk 0:02:45.4]} 13... Nxe4 {[%clk 0:02:43.2]} 14. Nd2
{[%clk 0:02:40.4]} 14... Nxd2 {[%clk 0:02:42.3]} 15. Qxd2 {[%clk 0:02:33.4]}
15... Bxe2 {[%clk 0:02:41]} 16. Qxe2 {[%clk 0:02:32.7]} 16... Rc8 {[%clk
0:02:39.8]} 17. Rac1 {[%clk 0:02:32]} 17... Qd7 {[%clk 0:02:34.4]} 18. Qd2
{[%clk 0:02:30.5]} 18... Rxc1 {[%clk 0:02:31.6]} 19. Rxc1 {[%clk 0:02:29]} 19...
Rc8 {[%clk 0:02:32.1]} 20. h3 {[%clk 0:02:23.1]} 20... b6 {[%clk 0:02:30.6]} 21.
Rxc8+ {[%clk 0:01:45.6]} 21... Qxc8 {[%clk 0:02:28.9]} 22. Qc3 {[%clk
0:01:39.7]} 22... Qf5 {[%clk 0:02:20.9]} 23. f3 {[%clk 0:01:35]} 23... Qb1+
{[%clk 0:02:18.9]} 24. Qc1 {[%clk 0:01:24.6]} 24... Qa2 {[%clk 0:02:14.9]} 25.
Qc2 {[%clk 0:01:24.7]} 25... h5 {[%clk 0:02:03.5]} 26. Kf2 {[%clk 0:01:24.2]}
26... e5 {[%clk 0:01:59.2]} 27. Qe2 {[%clk 0:01:04.7]} 27... exd4 {[%clk
0:01:53.2]} 28. exd4 {[%clk 0:01:02.2]} 28... Kh7 {[%clk 0:01:46]} 29. g4 {[%clk
0:00:40.3]} 29... hxg4 {[%clk 0:01:32.2]} 30. hxg4 {[%clk 0:00:39.9]} 30... Qxa4
{[%clk 0:01:30.5]} 31. Qd3 {[%clk 0:00:37.6]} 31... Qa2 {[%clk 0:01:22.2]} 32.
Qe2 {[%clk 0:00:35.6]} 32... a4 {[%clk 0:01:17.4]} 33. g5 {[%clk 0:00:34.5]}
33... a3 {[%clk 0:01:15.3]} 34. Bc3 {[%clk 0:00:34.2]} 34... Qb3 {[%clk
0:01:10.2]} 35. Qe1 {[%clk 0:00:18]} 35... Qc2+ {[%clk 0:01:05.9]} 36. Kg3
{[%clk 0:00:15.7]} 36... a2 {[%clk 0:01:05.1]} 37. f4 {[%clk 0:00:10.4]} 37...
Qb1 {[%clk 0:01:03.5]} 38. Qd2 {[%clk 0:00:04.1]} 38... a1=Q {[%clk 0:01:00.8]}
39. Bxa1 {[%clk 0:00:03.9]} 39... Qxa1 {[%clk 0:01:00.9]} 40. Qg2 {[%clk
0:00:01.3]} 40... Qc3+ {[%clk 0:00:59.2]} 0-1

[Event "Late-Titled-Tuesday-Blitz-March-19-2024"]
[Site "Chess.com"]
[Date "2024.03.19"]
[Round "10"]
[White "Supelyel"]
[Black "Jamal-Jamal-Jamal"]
[Result "1-0"]
[WhiteElo "2387"]
[BlackElo "2265"]
[TimeControl "180+1"]
[EndTime "15:53:17 PDT"]
[Termination "Supelyel won on time"]

1. c4 {[%clk 0:03:00.9]} 1... f5 {[%clk 0:02:57.9]} 2. g3 {[%clk 0:03:00.6]}
2... Nf6 {[%clk 0:02:56.4]} 3. Bg2 {[%clk 0:03:00.5]} 3... Nc6 {[%clk
0:02:56.4]} 4. Nc3 {[%clk 0:03:00.3]} 4... e5 {[%clk 0:02:56.3]} 5. d3 {[%clk
0:03:00.6]} 5... Bb4 {[%clk 0:02:56]} 6. Bd2 {[%clk 0:03:00.8]} 6... O-O {[%clk
0:02:55.1]} 7. e3 {[%clk 0:03:00.9]} 7... d6 {[%clk 0:02:53.4]} 8. Nge2 {[%clk
0:03:01.6]} 8... Be6 {[%clk 0:02:50]} 9. Nd5 {[%clk 0:02:59.9]} 9... Bxd2+
{[%clk 0:02:49.3]} 10. Qxd2 {[%clk 0:03:00.3]} 10... Bxd5 {[%clk 0:02:46.1]} 11.
cxd5 {[%clk 0:02:58.8]} 11... Ne7 {[%clk 0:02:46.2]} 12. e4 {[%clk 0:02:49.9]}
12... c6 {[%clk 0:02:44.6]} 13. dxc6 {[%clk 0:02:42.5]} 13... bxc6 {[%clk
0:02:28.9]} 14. exf5 {[%clk 0:02:42.1]} 14... Rb8 {[%clk 0:02:23.8]} 15. O-O
{[%clk 0:02:39.9]} 15... d5 {[%clk 0:02:22.3]} 16. Rac1 {[%clk 0:02:40.2]} 16...
Qd6 {[%clk 0:02:20]} 17. a3 {[%clk 0:02:37.4]} 17... Nxf5 {[%clk 0:02:18.3]} 18.
b4 {[%clk 0:02:35.1]} 18... Kh8 {[%clk 0:01:49.6]} 19. Rc3 {[%clk 0:02:25.7]}
19... Ng4 {[%clk 0:01:34.2]} 20. h3 {[%clk 0:02:09.5]} 20... Nf6 {[%clk
0:01:25]} 21. Rfc1 {[%clk 0:02:09.5]} 21... Ne7 {[%clk 0:01:24.6]} 22. Rc5
{[%clk 0:02:06.4]} 22... Nd7 {[%clk 0:01:15.6]} 23. Ra5 {[%clk 0:02:05.4]} 23...
Qf6 {[%clk 0:00:53.4]} 24. Nc3 {[%clk 0:01:42.7]} 24... e4 {[%clk 0:00:43.6]}
25. dxe4 {[%clk 0:01:35.1]} 25... d4 {[%clk 0:00:43.5]} 26. Nd1 {[%clk
0:01:35.6]} 26... Ne5 {[%clk 0:00:40.6]} 27. f4 {[%clk 0:01:36]} 27... N5g6
{[%clk 0:00:30.4]} 28. Rxa7 {[%clk 0:01:22.9]} 28... c5 {[%clk 0:00:25.6]} 29.
bxc5 {[%clk 0:01:17.6]} 29... Nc6 {[%clk 0:00:25.4]} 30. Rc7 {[%clk 0:01:10.1]}
30... Nce7 {[%clk 0:00:11.6]} 31. e5 {[%clk 0:01:07.2]} 31... Nxe5 {[%clk
0:00:11.4]} 32. fxe5 {[%clk 0:01:07.1]} 32... Qxe5 {[%clk 0:00:12.3]} 33. Rd7
{[%clk 0:01:04.1]} 33... Rbe8 {[%clk 0:00:09.9]} 34. Rxd4 {[%clk 0:01:03.6]}
34... Qxg3 {[%clk 0:00:09.4]} 35. Rg4 {[%clk 0:00:59.4]} 35... Qe5 {[%clk
0:00:06.2]} 36. Qc3 {[%clk 0:00:58.4]} 36... Qxc3 {[%clk 0:00:03.6]} 37. Rxc3
{[%clk 0:00:57.7]} 37... Nf5 {[%clk 0:00:04.1]} 38. Re4 {[%clk 0:00:50.3]} 1-0

[Event "Late-Titled-Tuesday-Blitz-March-19-2024"]
[Site "Chess.com"]
[Date "2024.03.19"]
[Round "10"]
[White "ploxoi"]
[Black "grandcoach"]
[Result "1-0"]
[WhiteElo "2406"]
[BlackElo "2230"]
[TimeControl "180+1"]
[EndTime "15:53:19 PDT"]
[Termination "ploxoi won on time"]

1. d4 {[%clk 0:03:00.9]} 1... Nf6 {[%clk 0:02:58.9]} 2. c4 {[%clk 0:03:00.2]}
2... e6 {[%clk 0:02:57.5]} 3. Nf3 {[%clk 0:03:00.9]} 3... d5 {[%clk 0:02:56.8]}
4. g3 {[%clk 0:03:00.7]} 4... dxc4 {[%clk 0:02:55]} 5. Bg2 {[%clk 0:03:00]} 5...
Nc6 {[%clk 0:02:53.5]} 6. Nbd2 {[%clk 0:02:53]} 6... Nxd4 {[%clk 0:02:45]} 7.
Nxd4 {[%clk 0:02:52]} 7... Qxd4 {[%clk 0:02:45.9]} 8. Qa4+ {[%clk 0:02:49.3]}
8... Bd7 {[%clk 0:02:26]} 9. Qxc4 {[%clk 0:02:45.8]} 9... Qxc4 {[%clk
0:02:24.8]} 10. Nxc4 {[%clk 0:02:46.7]} 10... Bb4+ {[%clk 0:02:23.9]} 11. Bd2
{[%clk 0:02:46.4]} 11... Bxd2+ {[%clk 0:02:23.5]} 12. Kxd2 {[%clk 0:02:46.4]}
12... O-O-O {[%clk 0:02:15.5]} 13. Kc2 {[%clk 0:02:39.5]} 13... Bb5 {[%clk
0:02:05.3]} 14. b3 {[%clk 0:02:29]} 14... Bxc4 {[%clk 0:02:04.3]} 15. bxc4
{[%clk 0:02:29.1]} 15... Rd4 {[%clk 0:02:01.3]} 16. Kb3 {[%clk 0:02:21.5]} 16...
Rhd8 {[%clk 0:02:00]} 17. Bf3 {[%clk 0:02:17.6]} 17... Ne4 {[%clk 0:01:56.6]}
18. Bxe4 {[%clk 0:02:14.5]} 18... Rxe4 {[%clk 0:01:57.5]} 19. e3 {[%clk
0:02:14.9]} 19... Rd2 {[%clk 0:01:50.1]} 20. Rhf1 {[%clk 0:02:12.5]} 20... Re5
{[%clk 0:01:30.7]} 21. Kc3 {[%clk 0:02:09.7]} 21... Rd7 {[%clk 0:01:23.7]} 22.
Rae1 {[%clk 0:02:04.5]} 22... Ra5 {[%clk 0:01:22.6]} 23. Re2 {[%clk 0:01:59.2]}
23... Rd6 {[%clk 0:01:15.2]} 24. Rb1 {[%clk 0:01:51.3]} 24... Ra3+ {[%clk
0:01:08.6]} 25. Rb3 {[%clk 0:01:48.2]} 25... Rxb3+ {[%clk 0:01:04.6]} 26. axb3
{[%clk 0:01:49.1]} 26... Rd1 {[%clk 0:01:04]} 27. e4 {[%clk 0:01:48.2]} 27... c5
{[%clk 0:01:01.5]} 28. e5 {[%clk 0:01:44.5]} 28... Kc7 {[%clk 0:01:01.1]} 29.
Re4 {[%clk 0:01:41]} 29... g5 {[%clk 0:00:52.5]} 30. h4 {[%clk 0:01:40.2]} 30...
Rf1 {[%clk 0:00:41.4]} 31. Re2 {[%clk 0:01:25]} 31... g4 {[%clk 0:00:37.9]} 32.
Kd3 {[%clk 0:01:23]} 32... h5 {[%clk 0:00:35.1]} 33. Ke4 {[%clk 0:01:22]} 33...
Rb1 {[%clk 0:00:32.2]} 34. Kf4 {[%clk 0:01:16.9]} 34... Rxb3 {[%clk 0:00:31.8]}
35. Kg5 {[%clk 0:01:17.4]} 35... Rc3 {[%clk 0:00:26]} 36. Kxh5 {[%clk
0:01:15.4]} 36... Rxc4 {[%clk 0:00:26.1]} 37. Kg5 {[%clk 0:01:15.3]} 37... b5
{[%clk 0:00:17.4]} 38. h5 {[%clk 0:01:15.5]} 38... b4 {[%clk 0:00:16.6]} 39. h6
{[%clk 0:01:14.7]} 39... Rd4 {[%clk 0:00:16.7]} 40. Kf6 {[%clk 0:01:11]} 40...
c4 {[%clk 0:00:15.6]} 41. h7 {[%clk 0:01:09.2]} 41... Rd8 {[%clk 0:00:14.6]} 42.
Re4 {[%clk 0:01:09.3]} 42... b3 {[%clk 0:00:08.3]} 43. Rxc4+ {[%clk 0:01:09]}
43... Kb6 {[%clk 0:00:06.5]} 44. Rb4+ {[%clk 0:01:08.3]} 44... Kc5 {[%clk
0:00:04.6]} 45. Rxb3 {[%clk 0:01:08.3]} 1-0

[Event "Late-Titled-Tuesday-Blitz-March-19-2024"]
[Site "Chess.com"]
[Date "2024.03.19"]
[Round "10"]
[White "andrzej"]
[Black "Piriflillo"]
[Result "1-0"]
[WhiteElo "2514"]
[BlackElo "2382"]
[TimeControl "180+1"]
[EndTime "15:53:25 PDT"]
[Termination "andrzej won by checkmate"]

1. e4 {[%clk 0:03:00.9]} 1... d5 {[%clk 0:03:00.6]} 2. exd5 {[%clk 0:03:00.9]}
2... Qxd5 {[%clk 0:03:01.3]} 3. Nc3 {[%clk 0:03:01.5]} 3... Qa5 {[%clk
0:03:02.1]} 4. d4 {[%clk 0:03:02]} 4... Nf6 {[%clk 0:03:02.3]} 5. Nf3 {[%clk
0:03:02.6]} 5... c6 {[%clk 0:03:02.7]} 6. Bc4 {[%clk 0:03:01.8]} 6... Bg4 {[%clk
0:03:03.2]} 7. h3 {[%clk 0:02:59.7]} 7... Qh5 {[%clk 0:03:03.8]} 8. Be2 {[%clk
0:02:39.3]} 8... e6 {[%clk 0:03:03.8]} 9. O-O {[%clk 0:02:39]} 9... Bxf3 {[%clk
0:03:03.6]} 10. Bxf3 {[%clk 0:02:39.1]} 10... Qa5 {[%clk 0:03:04.3]} 11. Ne2
{[%clk 0:02:38.3]} 11... Nbd7 {[%clk 0:03:01.1]} 12. c3 {[%clk 0:02:38.2]} 12...
Bd6 {[%clk 0:02:57.6]} 13. Re1 {[%clk 0:02:34.3]} 13... O-O {[%clk 0:02:57.2]}
14. Nf4 {[%clk 0:02:34.8]} 14... Qc7 {[%clk 0:02:50.1]} 15. g3 {[%clk
0:02:33.6]} 15... Nd5 {[%clk 0:02:47.8]} 16. Nd3 {[%clk 0:02:24.3]} 16... h6
{[%clk 0:02:31]} 17. Kg2 {[%clk 0:02:23.9]} 17... Rad8 {[%clk 0:02:26.9]} 18.
Qe2 {[%clk 0:02:22.9]} 18... Rfe8 {[%clk 0:02:24.8]} 19. Ne5 {[%clk 0:02:21]}
19... Nxe5 {[%clk 0:02:00.1]} 20. dxe5 {[%clk 0:02:20.8]} 20... Bc5 {[%clk
0:02:00.6]} 21. Be4 {[%clk 0:02:15.3]} 21... Ne7 {[%clk 0:01:57.2]} 22. Bc2
{[%clk 0:02:14.3]} 22... Ng6 {[%clk 0:01:54]} 23. h4 {[%clk 0:02:13.4]} 23...
Rd5 {[%clk 0:01:50.3]} 24. f4 {[%clk 0:02:10.8]} 24... Ne7 {[%clk 0:01:49.1]}
25. h5 {[%clk 0:02:08.2]} 25... Red8 {[%clk 0:01:36.1]} 26. g4 {[%clk
0:01:59.7]} 26... Kf8 {[%clk 0:01:10.5]} 27. Qe4 {[%clk 0:01:52.6]} 27... Bb6
{[%clk 0:00:58.4]} 28. Re2 {[%clk 0:01:49.2]} 28... c5 {[%clk 0:00:54.4]} 29. b3
{[%clk 0:01:36.5]} 29... a6 {[%clk 0:00:41.8]} 30. Be3 {[%clk 0:01:29.9]} 30...
c4 {[%clk 0:00:40.2]} 31. bxc4 {[%clk 0:01:25.6]} 31... R5d7 {[%clk 0:00:37.4]}
32. Ba4 {[%clk 0:01:19.8]} 32... Rd3 {[%clk 0:00:34]} 33. Bd4 {[%clk 0:01:12.7]}
33... R3xd4 {[%clk 0:00:21.6]} 34. cxd4 {[%clk 0:01:12.2]} 34... Rxd4 {[%clk
0:00:22.5]} 35. Qh7 {[%clk 0:01:09.7]} 35... Qxc4 {[%clk 0:00:20.9]} 36. Rc2
{[%clk 0:01:00.4]} 36... Qb4 {[%clk 0:00:17.8]} 37. Rc8+ {[%clk 0:00:39.7]}
37... Nxc8 {[%clk 0:00:15.9]} 38. Qh8+ {[%clk 0:00:39.4]} 38... Ke7 {[%clk
0:00:15.5]} 39. Qe8# {[%clk 0:00:39.4]} 1-0

[Event "Late-Titled-Tuesday-Blitz-March-19-2024"]
[Site "Chess.com"]
[Date "2024.03.19"]
[Round "10"]
[White "Marcan2b"]
[Black "Jospem"]
[Result "0-1"]
[WhiteElo "2928"]
[BlackElo "3060"]
[TimeControl "180+1"]
[EndTime "15:53:26 PDT"]
[Termination "Jospem won by resignation"]

1. e4 {[%clk 0:03:00.9]} 1... c5 {[%clk 0:02:59.4]} 2. Nf3 {[%clk 0:03:00.4]}
2... d6 {[%clk 0:03:00.1]} 3. Nc3 {[%clk 0:03:00.8]} 3... a6 {[%clk 0:03:00.4]}
4. d4 {[%clk 0:02:56.4]} 4... cxd4 {[%clk 0:03:01.3]} 5. Nxd4 {[%clk 0:02:56.8]}
5... e6 {[%clk 0:03:02]} 6. Be3 {[%clk 0:02:53.7]} 6... Nf6 {[%clk 0:03:01.1]}
7. Be2 {[%clk 0:02:53.3]} 7... b5 {[%clk 0:02:59.5]} 8. Bf3 {[%clk 0:02:50.4]}
8... e5 {[%clk 0:02:52.8]} 9. Nf5 {[%clk 0:02:47.3]} 9... g6 {[%clk 0:02:39.4]}
10. Ng3 {[%clk 0:02:46.2]} 10... Nbd7 {[%clk 0:02:34.2]} 11. O-O {[%clk
0:02:43.6]} 11... Bb7 {[%clk 0:02:32.5]} 12. Qd2 {[%clk 0:02:35.1]} 12... h5
{[%clk 0:02:27.8]} 13. h3 {[%clk 0:02:34.2]} 13... Be7 {[%clk 0:02:27.2]} 14.
Rfd1 {[%clk 0:02:18.3]} 14... O-O {[%clk 0:02:21.5]} 15. a3 {[%clk 0:02:12.2]}
15... Re8 {[%clk 0:02:14.7]} 16. Nf1 {[%clk 0:02:12.1]} 16... Rc8 {[%clk
0:02:12.1]} 17. Bg5 {[%clk 0:02:11.2]} 17... Qc7 {[%clk 0:01:36.7]} 18. Ne3
{[%clk 0:02:08.5]} 18... Kh7 {[%clk 0:01:35.5]} 19. Rac1 {[%clk 0:02:03]} 19...
Qb6 {[%clk 0:01:25]} 20. Bxf6 {[%clk 0:01:54.3]} 20... Nxf6 {[%clk 0:01:25.9]}
21. Ncd5 {[%clk 0:01:54.2]} 21... Bxd5 {[%clk 0:01:25.3]} 22. Nxd5 {[%clk
0:01:55.1]} 22... Nxd5 {[%clk 0:01:22.9]} 23. Qxd5 {[%clk 0:01:56]} 23... Kg7
{[%clk 0:01:22.6]} 24. c3 {[%clk 0:01:54.9]} 24... Rc5 {[%clk 0:01:15.5]} 25.
Qd3 {[%clk 0:01:54.5]} 25... Rec8 {[%clk 0:01:15.9]} 26. Rc2 {[%clk 0:01:33.4]}
26... Qc7 {[%clk 0:01:13.1]} 27. Rdc1 {[%clk 0:01:32.2]} 27... Bg5 {[%clk
0:01:12.9]} 28. Rd1 {[%clk 0:01:31.3]} 28... Be7 {[%clk 0:01:13.6]} 29. Rdc1
{[%clk 0:01:31.5]} 29... Bg5 {[%clk 0:01:07.7]} 30. Rd1 {[%clk 0:01:30.5]} 30...
Rc6 {[%clk 0:01:08.1]} 31. Be2 {[%clk 0:01:26.4]} 31... h4 {[%clk 0:01:01.1]}
32. Bg4 {[%clk 0:01:23.9]} 32... Rb8 {[%clk 0:00:59.9]} 33. g3 {[%clk
0:01:21.3]} 33... a5 {[%clk 0:00:57.8]} 34. Re2 {[%clk 0:01:11.4]} 34... b4
{[%clk 0:00:54]} 35. axb4 {[%clk 0:00:41]} 35... axb4 {[%clk 0:00:54.9]} 36. Rc2
{[%clk 0:00:41.2]} 36... Rbb6 {[%clk 0:00:43.1]} 37. Kg2 {[%clk 0:00:39.8]}
37... bxc3 {[%clk 0:00:41.2]} 38. bxc3 {[%clk 0:00:38.7]} 38... Rb3 {[%clk
0:00:38.7]} 39. Qd5 {[%clk 0:00:36.2]} 39... Ra3 {[%clk 0:00:31.8]} 40. Rd3
{[%clk 0:00:33.9]} 40... Ra5 {[%clk 0:00:26.2]} 41. Qb3 {[%clk 0:00:33]} 41...
Rb6 {[%clk 0:00:26.3]} 0-1

[Event "Late-Titled-Tuesday-Blitz-March-19-2024"]
[Site "Chess.com"]
[Date "2024.03.19"]
[Round "10"]
[White "Evgeny81"]
[Black "mightysmasher"]
[Result "0-1"]
[WhiteElo "2753"]
[BlackElo "2611"]
[TimeControl "180+1"]
[EndTime "15:53:29 PDT"]
[Termination "mightysmasher won by resignation"]

1. e4 {[%clk 0:02:56.7]} 1... e6 {[%clk 0:02:59.5]} 2. d4 {[%clk 0:02:55.6]}
2... d5 {[%clk 0:02:59.4]} 3. Nc3 {[%clk 0:02:55.9]} 3... dxe4 {[%clk
0:02:59.5]} 4. Nxe4 {[%clk 0:02:56]} 4... Nd7 {[%clk 0:03:00.4]} 5. g3 {[%clk
0:02:54.9]} 5... Ngf6 {[%clk 0:03:00.4]} 6. Bg2 {[%clk 0:02:54.9]} 6... Nxe4
{[%clk 0:03:00.3]} 7. Bxe4 {[%clk 0:02:55.1]} 7... Nf6 {[%clk 0:03:00.8]} 8. Bg2
{[%clk 0:02:55.4]} 8... Bd6 {[%clk 0:03:00.2]} 9. Ne2 {[%clk 0:02:55.5]} 9...
O-O {[%clk 0:03:00.4]} 10. O-O {[%clk 0:02:55.7]} 10... Rb8 {[%clk 0:03:01]} 11.
c4 {[%clk 0:02:52.9]} 11... b6 {[%clk 0:03:01.3]} 12. Bf4 {[%clk 0:02:51.5]}
12... Ba6 {[%clk 0:03:00.5]} 13. Qb3 {[%clk 0:02:50.3]} 13... Re8 {[%clk
0:02:51.8]} 14. Rad1 {[%clk 0:02:48.8]} 14... Nd5 {[%clk 0:02:46.3]} 15. Bd2
{[%clk 0:02:38.1]} 15... h6 {[%clk 0:02:39.2]} 16. Rfe1 {[%clk 0:02:38.2]} 16...
Nf6 {[%clk 0:02:38.6]} 17. Nc3 {[%clk 0:02:36.8]} 17... Qe7 {[%clk 0:02:36.3]}
18. Qa4 {[%clk 0:02:33.2]} 18... Bc8 {[%clk 0:02:31.6]} 19. d5 {[%clk
0:02:17.1]} 19... e5 {[%clk 0:02:24]} 20. Qc2 {[%clk 0:02:08.2]} 20... a5 {[%clk
0:02:15.4]} 21. Nb5 {[%clk 0:02:07.7]} 21... Bc5 {[%clk 0:02:15.1]} 22. h3
{[%clk 0:02:02.2]} 22... Nh5 {[%clk 0:02:09.5]} 23. Bc3 {[%clk 0:01:58.2]} 23...
Qg5 {[%clk 0:01:54.9]} 24. Nxc7 {[%clk 0:01:53.7]} 24... Qxg3 {[%clk 0:01:10.8]}
25. Rd3 {[%clk 0:01:50.1]} 25... Qg6 {[%clk 0:01:03.3]} 26. Nxe8 {[%clk
0:00:41.5]} 26... Bxh3 {[%clk 0:00:34]} 27. Rxh3 {[%clk 0:00:34.6]} 27... Qxc2
{[%clk 0:00:33.4]} 28. Rxh5 {[%clk 0:00:29.4]} 28... Bxf2+ {[%clk 0:00:30.4]}
29. Kf1 {[%clk 0:00:27.8]} 29... Bxe1 {[%clk 0:00:28.1]} 30. Bxe1 {[%clk
0:00:28.7]} 30... Qxc4+ {[%clk 0:00:26.1]} 31. Kg1 {[%clk 0:00:28.1]} 31... Rxe8
{[%clk 0:00:25.9]} 32. Rh4 {[%clk 0:00:27]} 32... Qc5+ {[%clk 0:00:22.9]} 33.
Bf2 {[%clk 0:00:26.2]} 33... Qc1+ {[%clk 0:00:22.9]} 34. Kh2 {[%clk 0:00:25.9]}
34... Qxb2 {[%clk 0:00:21]} 35. Rc4 {[%clk 0:00:22.2]} 35... Qxf2 {[%clk
0:00:20.4]} 0-1